fUST/lending_fUST_20250930
["ID","MTS","AMOUNT","RATE_DAILY","PERIOD"]
[388479628,1759194691287,-3468.66089885,0.0002099,2]
[388479629,1759194691316,-151.0,0.0002099,2]
[388479630,1759194691346,-151.0,0.0002099,2]
[388479631,1759194691373,-151.0,0.0002099,2]
[388479632,1759194691400,-156.6882023,0.0002099,2]
[388479633,1759194691483,-1843.3117977,0.0002099,2]
[388479634,1759194691510,-2000.0,0.0002099,2]
[388479635,1759194691537,-313.3864046,0.0002099,2]
[388479636,1759194691618,-1686.6135954,0.0002099,2]
[388479637,1759194691645,-2000.0,0.0002099,2]
[388479638,1759194691673,-151.0,0.0002099,2]
[388479639,1759194691701,-151.0,0.0002099,2]
[388479640,1759194691729,-151.0,0.0002099,2]
[388479641,1759194691756,-151.0,0.0002099,2]
[388479642,1759194691784,-151.0,0.0002099,2]
[388479643,1759194691811,-153.900493,0.0002099,2]
[388479644,1759194691838,-153.900493,0.0002099,2]
[388479645,1759194691868,-153.900493,0.0002099,2]
[388479646,1759194691896,-42.3798512,0.0002099,2]
[388479647,1759194692230,-108.6201488,0.0002099,2]
[388479648,1759194692241,-153.900493,0.0002099,2]
[388479649,1759194692252,-8.3234211,0.00021,7]
[388479650,1759194692276,-2000.0,0.00021,7]
[388479651,1759194692289,-151.0,0.00021,7]
[388479652,1759194692308,-151.0,0.00021,7]
[388479653,1759194692327,-151.0,0.00021,7]
[388479654,1759194692345,-151.0,0.00021,7]
[388479655,1759194692369,-151.0,0.00021,7]
[388479656,1759194692383,-153.900493,0.00021,7]
[388479657,1759194692396,-153.900493,0.00021,7]
[388479658,1759194692409,-153.900493,0.00021,7]
[388479659,1759194692422,-151.0,0.00021,7]
[388479660,1759194692453,-10000.01,0.00021,7]
[388479661,1759194692466,-10000.01,0.00021,7]
[388479662,1759194700900,-4542.0549001,0.00021,7]
[388479663,1759194700926,-915.9001998,0.00021,7]
[388479664,1759194701026,-189.40172226,0.00021,7]
[388479665,1759194701064,-613.11330387,0.00021048,2]
[388479666,1759194701102,-223.73,0.000212,2]
[388479667,1759194701136,-250.0,0.00021256,2]
[388479668,1759194701168,-500.0,0.00021261,2]
[388479669,1759194701201,-151.0,0.00021261,2]
[388479670,1759194701234,-151.0,0.00021261,2]
[388479671,1759194701267,-151.0,0.00021261,2]
[388479672,1759194701300,-1654.0,0.00021261,2]
[388479673,1759194701333,-180.67429611,0.00021261,2]
[388479674,1759194701367,-500.0,0.00021261,2]
[388479675,1759194701399,-372.17135552,0.00021261,2]
[388479676,1759194701504,-127.82864448,0.00021261,2]
[388479677,1759194701536,-151.0,0.00021261,2]
[388479678,1759194701567,-500.0,0.00021261,2]
[388479679,1759194701602,-151.0,0.00021261,2]
[388479680,1759194701637,-500.0,0.00021261,2]
[388479681,1759194701671,-225.94003019,0.00021261,2]
[388479682,1759194701704,-151.0,0.00021261,2]
[388479683,1759194701738,-500.0,0.00021261,2]
[388479684,1759194701772,-500.0,0.00021261,2]
[388479685,1759194701805,-500.0,0.00021261,2]
[388479686,1759194701837,-151.0,0.00021261,2]
[388479687,1759194701865,-166.05039937,0.00021261,2]
[388479688,1759194701892,-500.0,0.00021261,2]
[388479689,1759194701919,-151.0,0.00021261,2]
[388479690,1759194702220,-500.0,0.00021261,2]
[388479691,1759194702735,-151.0,0.00021261,2]
[388479692,1759194702769,-349.0,0.00021261,2]
[388479693,1759194702778,-101.37185192,0.00021261,2]
[388479694,1759194702999,423.33976686,0.00020785,2]
[388479695,1759194710534,-10000.01,0.00020785,2]
[388479696,1759194710664,-10000.01,0.00020785,2]
[388479697,1759194710769,-10000.01,0.00020785,2]
[388479698,1759194710883,-10000.01,0.00020785,2]
[388479699,1759194711004,-10000.01,0.00020785,2]
[388479700,1759194711158,-10000.01,0.00020785,2]
[388479701,1759194711311,-10000.01,0.00020785,2]
[388479702,1759194722327,300.0,0.00020784,2]
[388479703,1759194723565,1000.0,0.00020484,2]
[388479704,1759194740796,1200.0,0.00020784,2]
[388479705,1759194740936,577.08542335,0.00020784,2]
[388479706,1759194743892,-162.0,0.00020785,2]
[388479707,1759194749685,-423.33976686,0.00020785,2]
[388479708,1759194752353,260.04789887,0.00020784,2]
[388479709,1759194752382,500.0,0.00020784,2]
[388479710,1759194752427,381.15548405,0.00020784,2]
[388479711,1759194753601,500.0,0.00020784,2]
[388479712,1759194753634,500.0,0.00020784,2]
[388479713,1759194753674,200.78550851,0.00020784,2]
[388479714,1759194753706,500.0,0.00020784,2]
[388479715,1759194753734,500.0,0.00020784,2]
[388479716,1759194753764,500.0,0.00020784,2]
[388479717,1759194753794,402.6596764,0.00020784,2]
[388479718,1759194753828,413.39707274,0.00020784,2]
[388479719,1759194753863,489.87544628,0.00020784,2]
[388479720,1759194753894,337.2113298,0.00020784,2]
[388479721,1759194753923,170.47134603,0.00020784,2]
[388479722,1759194760563,500.0,0.00020784,2]
[388479723,1759194764342,-280.69706122,0.00020785,2]
[388479724,1759194772251,500.0,0.00020784,2]
[388479725,1759194778454,267.32081397,0.00020775,3]
[388479726,1759194778476,13.37918603,0.00020775,3]
[388479727,1759194779761,-444.31279608,0.00020785,2]
[388479728,1759194781867,-159.2550529,0.00020785,2]
[388479729,1759194782607,300.0,0.00020784,2]
[388479730,1759194784576,-248.4318093,0.00020785,2]
[388479731,1759194787469,-195.0676947,0.00020785,2]
[388479732,1759194790802,-214.531751,0.00020785,2]
[388479733,1759194795925,-303.3802545,0.00020785,2]
[388479735,1759194842931,300.0,0.00020784,2]
[388479736,1759194875632,803.50101811,0.00020655,2]
[388479737,1759194892801,651.64619369,0.00020784,2]
[388479738,1759194902094,300.0,0.00020784,2]
[388479739,1759194902124,282.0,0.00020784,2]
[388479740,1759194902487,300.0,0.00020784,2]
[388479741,1759194905622,1200.0,0.00020784,2]
[388479742,1759194915025,197.783423,0.0002015,2]
[388479743,1759194960279,150.63440084,0.00024767,30]
[388479744,1759194962342,300.0,0.00020784,2]
[388479746,1759194998480,209.770986,0.00020068,2]
[388479747,1759195014633,500.0,0.00020784,2]
[388479748,1759195021123,2481.30501128,0.00020781,2]
[388479749,1759195022625,300.0,0.00020784,2]
[388479750,1759195035347,504.94974544,0.00020781,2]
[388479751,1759195035861,160.0,0.00020637,5]
[388479752,1759195036183,160.0,0.00020411,4]
[388479753,1759195036502,160.0,0.00020185,3]
[388479754,1759195040272,875.67443645,0.00020784,2]
[388479755,1759195040293,324.32556355,0.00020784,2]
[388479756,1759195076841,2091.67,0.00020775,3]
[388479757,1759195083034,300.0,0.00020784,2]
[388479758,1759195087800,1045.83,0.00020775,3]
[388479759,1759195098494,522.92,0.00020775,3]
[388479760,1759195109202,261.46,0.00020775,3]
[388479762,1759195119977,784.38,0.00020775,3]
[388479763,1759195135715,500.0,0.00020784,2]
[388479764,1759195142789,300.0,0.00020784,2]
[388479765,1759195143480,160.0,0.00020785,2]
[388479766,1759195156315,1047.067353,0.00020053,2]
[388479768,1759195202383,300.0,0.00020784,2]
[388479769,1759195205900,1200.0,0.00020784,2]
[388479770,1759195206894,151.0,0.00020785,2]
[388479771,1759195220542,151.0,0.00020785,2]
[388479772,1759195221367,151.0,0.00020785,2]
[388479773,1759195221932,151.0,0.00020785,2]
[388479774,1759195222637,151.0,0.00020785,2]
[388479775,1759195223380,151.0,0.00020785,2]
[388479776,1759195224002,151.0,0.00020785,2]
[388479777,1759195224743,105.35708345,0.00020785,2]
[388479778,1759195224765,45.64291655,0.00020785,2]
[388479779,1759195225476,151.0,0.00020785,2]
[388479780,1759195226263,151.0,0.00020785,2]
[388479781,1759195226930,151.0,0.00020785,2]
[388479782,1759195227621,151.0,0.00020785,2]
[388479783,1759195228311,151.0,0.00020785,2]
[388479784,1759195229094,151.0,0.00020785,2]
[388479785,1759195229727,151.0,0.00020785,2]
[388479786,1759195230369,151.0,0.00020785,2]
[388479787,1759195231002,151.0,0.00020785,2]
[388479788,1759195231630,151.0,0.00020785,2]
[388479789,1759195232613,151.0,0.00020785,2]
[388479790,1759195232783,-8293.36708345,0.00020785,2]
[388479791,1759195232796,-10000.01,0.00020785,2]
[388479792,1759195232813,-10000.01,0.00020785,2]
[388479793,1759195232860,-10000.01,0.00020785,2]
[388479794,1759195232942,151.0,0.00020785,2]
[388479795,1759195233649,151.0,0.00020785,2]
[388479796,1759195241872,-9698.01,0.00020785,2]
[388479797,1759195241932,-10000.01,0.00020785,2]
[388479798,1759195242088,-10000.01,0.00020785,2]
[388479799,1759195258414,300.0,0.00020784,2]
[388479800,1759195262707,300.0,0.00020784,2]
[388479801,1759195323066,300.0,0.00020784,2]
[388479802,1759195326949,544.94639143,0.000207,2]
[388479803,1759195340042,1200.0,0.00020784,2]
[388479804,1759195379908,500.0,0.00020784,2]
[388479805,1759195442375,300.0,0.00020784,2]
[388479806,1759195446403,198.72795799,0.00020543,5]
[388479807,1759195501426,500.0,0.00020784,2]
[388479808,1759195506179,1200.0,0.00020784,2]
[388479809,1759195520797,245.14119366,0.00020785,2]
[388479810,1759195535165,151.0,0.000198,2]
[388479811,1759195535491,151.0,0.000187,2]
[388479812,1759195535805,151.0,0.000176,2]
[388479813,1759195562280,300.0,0.00020784,2]
[388479814,1759195594740,3658.19445692,0.0002,2]
[388479815,1759195594763,10000.01,0.0002,2]
[388479816,1759195594784,10000.01,0.0002,2]
[388479817,1759195594804,10000.01,0.0002,2]
[388479818,1759195594824,10000.01,0.0002,2]
[388479819,1759195594844,10000.01,0.0002,2]
[388479820,1759195594865,10000.01,0.0002,2]
[388479821,1759195594885,10000.01,0.0002,2]
[388479822,1759195594906,605.73554308,0.0002,2]
[388479823,1759195606890,476.82809251,0.000207,2]
[388479824,1759195622652,300.0,0.00020784,2]
[388479825,1759195639989,500.0,0.00020784,2]
[388479826,1759195640777,1200.0,0.00020784,2]
[388479827,1759195674758,1307.29,0.00020775,3]
[388479828,1759195682684,300.0,0.00020784,2]
[388479829,1759195685544,653.64,0.00020775,3]
[388479832,1759195696701,326.82,0.00020775,3]
[388479833,1759195707399,163.41,0.00020775,3]
[388479834,1759195718068,490.28,0.00020775,3]
[388479837,1759195742330,300.0,0.00020784,2]
[388479838,1759195744432,-3376.00636441,0.00020785,2]
[388479839,1759195744540,-10000.01,0.00020785,2]
[388479841,1759195747353,351.01519068,0.00020784,2]
[388479844,1759195763051,-9648.99480932,0.00020785,2]
[388479845,1759195763151,-10000.01,0.00020785,2]
[388479846,1759195763266,-10000.01,0.00020785,2]
[388479847,1759195763413,-10000.01,0.00020785,2]
[388479848,1759195763563,-10000.01,0.00020785,2]
[388479849,1759195763773,-10000.01,0.00020785,2]
[388479850,1759195763900,-10000.01,0.00020785,2]
[388479851,1759195764175,-10000.01,0.00020785,2]
[388479852,1759195773095,-10000.01,0.00020785,2]
[388479853,1759195802146,300.0,0.00020784,2]
[388479854,1759195803305,-9700.01,0.00020785,2]
[388479855,1759195803514,-10000.01,0.00020785,2]
[388479856,1759195803664,-10000.01,0.00020785,2]
[388479857,1759195803790,-10000.01,0.00020785,2]
[388479858,1759195803924,-10000.01,0.00020785,2]
[388479859,1759195804076,-10000.01,0.00020785,2]
[388479860,1759195804221,-10000.01,0.00020785,2]
[388479861,1759195804361,-10000.01,0.00020785,2]
[388479862,1759195804632,-10000.01,0.00020785,2]
[388479863,1759195813219,-586.89206334,0.00020784,2]
[388479864,1759195813251,-1200.0,0.00020784,2]
[388479865,1759195813283,-232.17014799,0.00020785,2]
[388479866,1759195813362,-5961.88557734,0.00020785,2]
[388479867,1759195820932,156.23195952,0.00033431,120]
[388479868,1759195823359,-314.24699438,0.00020785,2]
[388479869,1759195823444,-9371.51601124,0.00020785,2]
[388479870,1759195823461,-10000.01,0.00020785,2]
[388479871,1759195823507,-10000.01,0.00020785,2]
[388479872,1759195823618,-1095.54420082,0.00020785,2]
[388479883,1759195832464,-500.0,0.000208,2]
[388479884,1759195832474,-160.0,0.00020863,6]
[388479885,1759195832483,-151.0,0.000209,3]
[388479886,1759195832492,-151.0,0.000209,4]
[388479887,1759195832502,-845.73579264,0.00021,10]
[388479888,1759195832511,-160.0,0.00021089,7]
[388479889,1759195832520,-500.0,0.00021128,2]
[388479890,1759195832532,-2131.92652204,0.00021215,2]
[388479891,1759195832541,-800.0,0.00021287,2]
[388479892,1759195832550,-160.0,0.00021315,8]
[388479893,1759195832559,-50000.0,0.00021315,2]
[388479894,1759195832568,-185.09,0.000214,3]
[388479895,1759195832578,-185.09,0.000214,3]
[388479896,1759195832587,-185.09,0.000214,3]
[388479897,1759195832596,-185.09,0.000214,3]
[388479898,1759195832605,-150.99,0.000214,3]
[388479899,1759195832614,-5888.0,0.00021408,2]
[388479900,1759195832623,-168.0,0.00021415,2]
[388479901,1759195832633,-2131.92652202,0.00021434,2]
[388479902,1759195832642,-168.0,0.00021467,2]
[388479903,1759195832652,-800.0,0.000215,2]
[388479904,1759195832662,-1305.34657299,0.00021517,2]
[388479905,1759195832671,-3516.32127329,0.00021517,2]
[388479906,1759195832680,-160.0,0.00021541,9]
[388479907,1759195832690,-151.0,0.00021583,2]
[388479908,1759195832700,-151.0,0.00021583,2]
[388479909,1759195832709,-500.0,0.00021583,2]
[388479910,1759195832719,-151.0,0.00021583,2]
[388479911,1759195832728,-500.0,0.00021583,2]
[388479912,1759195832737,-500.0,0.00021583,2]
[388479913,1759195832747,-500.0,0.00021583,2]
[388479914,1759195832756,-151.0,0.00021583,2]
[388479915,1759195832765,-500.0,0.00021583,2]
[388479916,1759195832775,-151.0,0.00021583,2]
[388479917,1759195832784,-219.37797323,0.00021583,2]
[388479918,1759195832793,-151.0,0.00021583,2]
[388479919,1759195832802,-500.0,0.00021583,2]
[388479920,1759195832811,-1585.0,0.00021583,2]
[388479921,1759195832820,-151.0,0.00021583,2]
[388479922,1759195832830,-151.0,0.00021583,2]
[388479923,1759195832840,-500.0,0.00021583,2]
[388479924,1759195832849,-151.0,0.00021583,2]
[388479925,1759195832858,-151.0,0.00021583,2]
[388479926,1759195832867,-500.0,0.00021603,2]
[388479927,1759195832876,-500.0,0.00021603,2]
[388479928,1759195832884,-151.0,0.00021603,2]
[388479929,1759195832894,-151.0,0.00021603,2]
[388479930,1759195832903,-500.0,0.00021603,2]
[388479931,1759195832911,-500.0,0.00021603,2]
[388479932,1759195832920,-326.66330655,0.00021603,2]
[388479933,1759195832929,-879.9602786,0.00021603,2]
[388479934,1759195832938,-636.87259605,0.00021603,2]
[388479935,1759195832947,-2547.4903842,0.00021603,2]
[388479936,1759195832955,-5726.12151108,0.00021603,2]
[388479937,1759195832965,-748.0,0.00021604,2]
[388479938,1759195832974,-168.0,0.00021613,2]
[388479939,1759195832983,-151.0,0.00021616,2]
[388479940,1759195832992,-151.0,0.00021616,2]
[388479941,1759195833001,-1600.0,0.00021616,2]
[388479942,1759195833010,-1600.0,0.00021616,2]
[388479943,1759195833019,-151.0,0.00021616,2]
[388479944,1759195833028,-1600.0,0.00021616,2]
[388479945,1759195833038,-1600.0,0.00021616,2]
[388479946,1759195833047,-168.0,0.00021636,2]
[388479947,1759195833056,-332.0,0.00021642,2]
[388479948,1759195833066,-1906.28533426,0.00021643,2]
[388479949,1759195833075,-2131.92652202,0.00021653,2]
[388479950,1759195833086,-748.0,0.00021658,2]
[388479951,1759195833095,-168.0,0.00021659,2]
[388479952,1759195833104,-8543.17221544,0.00021663,2]
[388479953,1759195833113,-324.143,0.00021671,2]
[388479954,1759195833122,-800.0,0.000217,2]
[388479955,1759195833131,-160.0,0.00021767,10]
[388479956,1759195833140,-201956.07545688,0.00021817,2]
[388479957,1759195833152,-101121.2367504,0.00021817,2]
[388479958,1759195833163,-310.21519803,0.00021817,2]
[388480057,1759195840287,-267.0,0.00020784,2]
[388480058,1759195840299,-233.0,0.00020784,2]
[388480059,1759195840308,-500.0,0.00020784,2]
[388480060,1759195840317,-500.0,0.00020784,2]
[388480061,1759195840326,-500.0,0.00020784,2]
[388480062,1759195840335,-158.18969746,0.00020784,2]
[388480063,1759195840387,-341.81030254,0.00020784,2]
[388480064,1759195840397,-348.56094172,0.00020784,2]
[388480073,1759195843265,-158.33479748,0.00020784,2]
[388480074,1759195843293,-500.0,0.00020784,2]
[388480075,1759195843321,-500.0,0.00020784,2]
[388480076,1759195843351,-500.0,0.00020784,2]
[388480077,1759195843378,-500.0,0.00020784,2]
[388480078,1759195843406,-500.0,0.00020784,2]
[388480079,1759195843434,-500.0,0.00020784,2]
[388480081,1759195843462,-500.0,0.00020784,2]
[388480082,1759195843788,500.0,0.00020784,2]
[388480083,1759195843814,500.0,0.00020784,2]
[388480084,1759195843848,500.0,0.00020784,2]
[388480085,1759195843873,274.71364637,0.00020784,2]
[388480086,1759195843898,197.46281337,0.00020784,2]
[388480087,1759195843927,500.0,0.00020784,2]
[388480088,1759195843953,211.1639453,0.00020784,2]
[388480089,1759195843974,288.8360547,0.00020784,2]
[388480090,1759195844002,206.6868943,0.00020784,2]
[388480091,1759195844028,526.00936257,0.00020784,2]
[388480092,1759195844056,500.0,0.00020784,2]
[388480093,1759195844082,500.0,0.00020784,2]
[388480094,1759195844111,430.74233859,0.00020784,2]
[388480095,1759195844147,500.0,0.00020784,2]
[388480096,1759195844180,500.0,0.00020784,2]
[388480097,1759195844212,640.48592964,0.00020784,2]
[388480100,1759195846463,-1132.13,0.00021807,3]
[388480101,1759195846473,-206.09,0.00021807,10]
[388480102,1759195846482,-464.00039151,0.00021817,2]
[388480103,1759195846547,-1646.97115197,0.00021817,2]
[388480110,1759195849119,5907.2494202,0.00020685,2]
[388480111,1759195849141,10000.01,0.00020685,2]
[388480112,1759195853252,-566.06,0.00020675,3]
[388480113,1759195863339,-171.75,0.00020675,10]
[388480114,1759195863368,-283.03,0.00020675,3]
[388480115,1759195863397,-300.0,0.00020684,2]
[388480116,1759195863523,-4674.98959496,0.00020685,2]
[388480117,1759195863623,-10000.01,0.00020685,2]
[388480118,1759195874181,-858.75,0.00020675,10]
[388480119,1759195874209,-849.13,0.00020675,3]
[388480120,1759195874456,-1137.43262339,0.00020684,2]
[388480121,1759195876893,501.7,0.0002876,120]
[388480122,1759195887107,587.9956365,0.00020684,2]
[388480123,1759195922328,300.0,0.00020684,2]
[388480124,1759195925510,207.29,0.00020675,3]
[388480125,1759195936243,621.87,0.00020675,3]
[388480126,1759195940097,1200.0,0.00020684,2]
[388480128,1759195958722,243.96840471,0.00020684,2]
[388480129,1759195958749,500.0,0.00020684,2]
[388480130,1759195959013,233.4418245,0.00020684,2]
[388480132,1759195959745,414.81888751,0.00020684,2]
[388480133,1759195959767,68.02518872,0.00020684,2]
[388480134,1759195959799,348.94288107,0.00020684,2]
[388480135,1759195959831,265.58932266,0.00020684,2]
[388480136,1759195959859,500.0,0.00020684,2]
[388480137,1759195959892,500.0,0.00020684,2]
[388480138,1759195959937,500.0,0.00020684,2]
[388480139,1759195959978,500.0,0.00020684,2]
[388480140,1759195960053,500.0,0.00020684,2]
[388480141,1759195960085,500.0,0.00020684,2]
[388480142,1759195960118,500.0,0.00020684,2]
[388480143,1759195960151,500.0,0.00020684,2]
[388480144,1759195960183,500.0,0.00020684,2]
[388480145,1759195960212,500.0,0.00020684,2]
[388480146,1759195960244,500.0,0.00020684,2]
[388480147,1759195960272,500.0,0.00020684,2]
[388480148,1759195960306,500.0,0.00020684,2]
[388480149,1759195960338,195.60527618,0.00020684,2]
[388480150,1759195982419,300.0,0.00020684,2]
[388480151,1759195987990,500.0,0.00020684,2]
[388480152,1759196042612,300.0,0.00020684,2]
[388480159,1759196068385,201.9442897,0.00020115,2]
[388480160,1759196102613,203.74681374,0.00020585,2]
[388480161,1759196102849,300.0,0.00020684,2]
[388480162,1759196109764,500.0,0.00020684,2]
[388480163,1759196122762,308.1333714,0.00023288,30]
[388480164,1759196133566,188.745527,0.00020115,2]
[388480165,1759196133936,-203.26568249,0.00020685,2]
[388480166,1759196137226,-162.4131672,0.00020685,2]
[388480167,1759196139802,-300.0,0.00020685,2]
[388480168,1759196140328,127.41070093,0.00020685,2]
[388480169,1759196140351,238.26814876,0.00020685,2]
[388480170,1759196142101,-405.76413012,0.00020685,2]
[388480171,1759196144074,-480.0,0.00020685,2]
[388480172,1759196146274,-577.79248738,0.00020685,2]
[388480173,1759196151536,-351.85199585,0.00020685,2]
[388480174,1759196153116,-385.83487905,0.00020685,2]
[388480175,1759196155947,-265.34169547,0.00020685,2]
[388480176,1759196160694,-160.0,0.00020685,2]
[388480177,1759196162675,300.0,0.00020684,2]
[388480178,1759196163117,2766.58518787,0.00020685,2]
[388480179,1759196184192,-341.54319708,0.00020685,2]
[388480180,1759196185854,697.41406571,0.00020585,2]
[388480181,1759196186328,-219.13588773,0.00020685,2]
[388480182,1759196188601,-152.0,0.00020685,2]
[388480183,1759196190417,-300.0,0.00020685,2]
[388480184,1759196192507,-300.0,0.00020685,2]
[388480185,1759196194571,-245.48,0.00020685,2]
[388480186,1759196198695,-310.02884923,0.00020685,2]
[388480188,1759196201909,-269.96811683,0.00020685,2]
[388480189,1759196203903,-157.32309597,0.00020685,2]
[388480191,1759196205417,-169.7629512,0.00020685,2]
[388480192,1759196205867,160.0,0.000206,2]
[388480193,1759196206898,160.0,0.000206,2]
[388480194,1759196207888,160.0,0.000206,2]
[388480195,1759196208052,1780.03103001,0.00020685,2]
[388480196,1759196209260,-160.23361501,0.00020685,2]
[388480197,1759196211040,-379.43160316,0.00020685,2]
[388480198,1759196213863,-200.77356247,0.00020685,2]
[388480199,1759196215628,-284.84588893,0.00020685,2]
[388480200,1759196217933,-535.93985255,0.00020685,2]
[388480201,1759196221401,-594.00319049,0.00020685,2]
[388480202,1759196222441,300.0,0.00020684,2]
[388480203,1759196223823,160.0,0.000191,2]
[388480204,1759196224978,160.0,0.000191,2]
[388480205,1759196228797,-271.5410163,0.00020685,2]
[388480206,1759196228860,160.0,0.000191,2]
[388480207,1759196230606,440.43878064,0.00020685,2]
[388480208,1759196230993,-424.73732778,0.00020685,2]
[388480209,1759196232037,500.0,0.00020684,2]
[388480210,1759196233638,-346.06,0.00020685,2]
[388480211,1759196239827,-267.53584996,0.00020685,2]
[388480212,1759196239944,1200.0,0.00020684,2]
[388480213,1759196244627,-254.23286875,0.00020685,2]
[388480214,1759196250829,159.59953948,0.000191,2]
[388480215,1759196254368,657.67324753,0.00020685,2]
[388480216,1759196254392,38.60509655,0.00020685,2]
[388480217,1759196256121,417.15472785,0.00025,30]
[388480218,1759196273992,1546.55,0.00020675,3]
[388480219,1759196282344,300.0,0.00020684,2]
[388480220,1759196284685,773.28,0.00020675,3]
[388480221,1759196292355,166.59334002,0.00033452,60]
[388480222,1759196295625,386.64,0.00020675,3]
[388480223,1759196306584,193.32,0.00020675,3]
[388480224,1759196317372,579.97,0.00020675,3]
[388480225,1759196342290,300.0,0.00020684,2]
[388480226,1759196350943,157.0,0.00033412,120]
[388480227,1759196355095,500.0,0.00020684,2]
[388480228,1759196376518,800.0,0.00019908,2]
[388480229,1759196386875,862.52638836,0.00020585,2]
[388480230,1759196387289,286.0,0.00020623,2]
[388480231,1759196402469,300.0,0.00020684,2]
[388480232,1759196402499,300.0,0.00020684,2]
[388480233,1759196402925,300.0,0.00020684,2]
[388480234,1759196407429,1000.0,0.00020685,2]
[388480235,1759196407476,1006.17102927,0.00020685,2]
[388480236,1759196407758,526.94748582,0.00020685,2]
[388480237,1759196407786,486.0237927,0.00020685,2]
[388480238,1759196415039,154.75713901,0.00020685,2]
[388480239,1759196415252,525.83974446,0.00020685,2]
[388480240,1759196419535,151.0,0.00020685,2]
[388480241,1759196462557,300.0,0.00020684,2]
[388480242,1759196474350,610.23730754,0.00020585,2]
[388480243,1759196477310,500.0,0.00020684,2]
[388480244,1759196484895,-160.0,0.00020685,2]
[388480245,1759196485759,-2642.76726307,0.00020685,2]
[388480246,1759196485822,-10000.01,0.00020685,2]
[388480247,1759196485878,-10000.01,0.00020685,2]
[388480248,1759196486028,-10000.01,0.00020685,2]
[388480249,1759196486206,-10000.01,0.00020685,2]
[388480250,1759196486351,-10000.01,0.00020685,2]
[388480251,1759196486510,-10000.01,0.00020685,2]
[388480252,1759196522636,300.0,0.00020684,2]
[388480253,1759196540748,1042.0,0.00020684,2]
[388480254,1759196551106,-8658.01,0.00020685,2]
[388480255,1759196556192,-10000.01,0.00020685,2]
[388480256,1759196556509,-10000.01,0.00020685,2]
[388480257,1759196556723,-10000.01,0.00020685,2]
[388480258,1759196557251,-10000.01,0.00020685,2]
[388480259,1759196557466,-10000.01,0.00020685,2]
[388480260,1759196558022,-10000.01,0.00020685,2]
[388480261,1759196558243,-10000.01,0.00020685,2]
[388480262,1759196558359,-10000.01,0.00020685,2]
[388480263,1759196558475,-10000.01,0.00020685,2]
[388480264,1759196575238,-10000.01,0.00020685,2]
[388480265,1759196575383,-10000.01,0.00020685,2]
[388480266,1759196575540,-10000.01,0.00020685,2]
[388480267,1759196575658,-10000.01,0.00020685,2]
[388480268,1759196575776,-10000.01,0.00020685,2]
[388480269,1759196575887,-10000.01,0.00020685,2]
[388480270,1759196576021,-10000.01,0.00020685,2]
[388480271,1759196576168,-10000.01,0.00020685,2]
[388480272,1759196576287,-10000.01,0.00020685,2]
[388480273,1759196576404,-10000.01,0.00020685,2]